bitfinex/quotes_SOLUSD_20241126
["timestamp","ask_amount","ask_price","bid_price","bid_amount"]
[1732579335687,37.0634148,234.56,234.47,34.0791148]
[1732579335979,13.23128798,234.59,234.46,0.12549]
[1732579336183,13.23128798,234.59,234.45,20.0]
[1732579336184,34.0791148,234.56,234.48,34.0791148]
[1732579336490,34.0791148,234.58,234.5,34.0791148]
[1732579336657,34.0791148,234.56,234.46,34.0791148]
[1732579336860,34.0791148,234.54,234.46,34.0791148]
[1732579337079,34.0791148,234.5,234.42,34.0791148]
[1732579337262,34.0791148,234.44,234.23,4.2693]
[1732579337474,34.0791148,234.39,234.32,34.0791148]
[1732579337673,34.0791148,234.43,234.34,34.0791148]
[1732579337875,20.0,234.4,234.23,4.2693]
[1732579338074,34.0791148,234.41,234.32,34.0791148]
[1732579338263,34.0791148,234.43,234.34,34.0791148]
[1732579338468,21.4836,234.46,234.42,34.0791148]
[1732579338469,15.3209,234.46,234.42,34.0791148]
[1732579338673,15.3209,234.46,234.44,34.0791148]
[1732579338987,6.1627,234.55,234.45,0.12549]
[1732579339191,34.0791148,234.55,234.46,34.0791148]
[1732579339696,34.0791148,234.47,234.38,34.0791148]
[1732579339877,34.0791148,234.45,234.36,34.0791148]
[1732579340179,34.0791148,234.47,234.38,34.0791148]
[1732579340382,20.0,234.44,234.29,0.63989668]
[1732579340594,34.0791148,234.43,234.34,34.0791148]
[1732579341293,20.0,234.44,234.24,34.0791148]
[1732579341294,34.0791148,234.38,234.31,34.0791148]
[1732579341495,34.0791148,234.34,234.25,34.0791148]
[1732579341990,49.4000148,234.36,234.29,34.0791148]
[1732579342487,15.3209,234.36,234.31,34.0791148]
[1732579342696,15.3209,234.36,234.29,34.0791148]
[1732579343194,20.0,234.31,234.23,34.0791148]
[1732579343387,20.0,234.29,234.23,34.0791148]
[1732579343567,62.3868148,234.36,234.17,4.2703]
[1732579343568,15.3209,234.36,234.27,34.0791148]
[1732579343773,49.4000148,234.36,234.27,34.0791148]
[1732579344075,15.3209,234.36,234.33,34.0791148]
[1732579344293,34.0791148,234.39,234.31,34.0791148]
[1732579344595,34.0791148,234.41,234.31,34.0791148]
[1732579344774,34.0791148,234.41,234.33,34.0791148]
[1732579345473,20.0,234.38,234.29,34.0791148]
[1732579345675,34.0791148,234.39,234.29,34.0791148]
[1732579345874,34.0791148,234.35,234.27,34.0791148]
[1732579346074,34.0791148,234.33,234.25,34.0791148]
[1732579346282,34.0791148,234.33,234.23,34.0791148]
[1732579346491,2.9873,234.32,234.23,34.0791148]
[1732579346681,20.0,234.3,234.23,34.0791148]
[1732579346875,20.0,234.3,234.2,4.2697]
[1732579346876,54.0791148,234.3,234.21,33.2567148]
[1732579347992,57.0667148,234.3,234.21,33.2567148]
[1732579348200,34.0791148,234.26,234.17,33.0791148]
[1732579348389,34.0791148,234.26,234.17,34.0791148]
[1732579348690,21.4836,234.27,234.21,34.0791148]
[1732579349078,15.3209,234.27,234.23,34.0791148]
[1732579349278,15.3209,234.27,234.25,34.0791148]
[1732579349489,15.2603,234.27,234.25,34.0791148]
[1732579349795,20.0,234.32,234.25,34.0791148]
[1732579350003,40.2768148,234.37,234.29,34.0791148]
[1732579350306,34.0791148,234.35,234.25,34.0791148]
[1732579350504,34.0791148,234.35,234.27,34.0791148]
[1732579350796,34.0791148,234.33,234.23,34.0791148]
[1732579351088,34.0791148,234.33,234.25,34.0791148]
[1732579351292,34.0791148,234.35,234.25,34.0791148]
[1732579351477,34.0791148,234.33,234.25,34.0791148]
[1732579351792,34.0791148,234.31,234.23,34.0791148]
[1732579352006,34.0791148,234.31,234.21,34.0791148]
[1732579352174,20.0,234.32,234.27,34.0791148]
[1732579352499,20.0,234.32,234.25,34.0791148]
[1732579352703,34.0791148,234.31,234.21,34.0791148]
[1732579353691,34.0791148,234.27,234.19,34.0791148]
[1732579353877,34.0791148,234.31,234.23,34.0791148]
[1732579354078,34.0791148,234.31,234.23,38.3482148]
[1732579354293,20.0,234.32,234.25,34.0791148]
[1732579355079,34.0791148,234.3,234.21,34.0791148]
[1732579355276,34.0791148,234.28,234.19,34.0791148]
[1732579355973,34.0791148,234.24,234.15,34.0791148]
[1732579356187,34.0791148,234.19,234.1,34.0791148]
[1732579356480,54.0791148,234.21,234.12,34.0791148]
[1732579357496,20.0,234.21,234.14,34.0791148]
[1732579357797,34.0791148,234.23,234.14,34.0791148]
[1732579357798,20.0,234.2,234.14,34.0791148]
[1732579358007,20.0,234.2,234.12,38.3503148]
[1732579358189,34.0791148,234.18,234.09,34.0791148]
[1732579358795,34.0791148,234.16,234.07,34.0791148]
[1732579359580,20.0,234.13,234.05,34.0791148]
[1732579359996,22.9898,234.13,234.05,34.0791148]
[1732579360185,20.0,234.11,234.05,34.0791148]
[1732579361391,20.0,234.11,233.98,0.4826342]
[1732579361392,34.0791148,234.08,233.98,0.4826342]
[1732579361602,20.0,234.11,234.03,34.0791148]
[1732579361906,22.99,234.11,234.05,34.0791148]
[1732579362080,22.99,234.11,234.03,34.0791148]
[1732579362281,22.99,234.11,234.01,34.0791148]
[1732579362282,20.0,234.07,234.01,34.0791148]
[1732579362495,20.0,234.05,233.98,34.561749]
[1732579363194,20.0,234.03,233.98,0.4826342]
[1732579363776,34.0791148,234.06,233.98,34.561749]
[1732579363976,2.9909,234.04,233.98,0.4826342]
[1732579364400,20.0,234.01,233.98,0.4826342]
[1732579364982,20.0,233.99,233.98,0.4826342]
[1732579366006,22.9915,233.99,233.98,0.4826342]
[1732579366309,20.0,233.99,233.98,0.4826342]
[1732579366781,0.12549,234.09,233.98,0.4826342]
[1732579366982,34.0791148,234.03,233.98,0.4826342]
[1732579367204,23.776884,234.02,233.98,0.4826342]
[1732579367390,34.0791148,234.01,233.98,0.4826342]
[1732579367906,34.0791148,233.99,233.98,0.4826342]
[1732579368086,37.0706148,233.99,233.98,0.4826342]
[1732579369005,2.9915,233.99,233.98,0.4826342]
[1732579369210,22.9915,233.99,233.98,0.4826342]
[1732579369506,46.768384,233.99,233.98,0.4826342]
[1732579369706,6.3108,234.01,233.98,0.4826342]
[1732579370090,37.0700148,234.05,233.98,34.561749]
[1732579370301,37.0697148,234.07,233.98,34.561749]
[1732579370602,6.3108,234.09,234.02,34.0791148]
[1732579371406,2.9899,234.12,234.04,34.0791148]
[1732579372499,34.0791148,234.09,233.98,24.7563342]
[1732579372812,20.0,234.1,233.98,24.7563342]
[1732579372813,34.0791148,234.07,233.98,34.561749]
[1732579373489,34.2046048,234.09,234.0,34.0791148]
[1732579374179,2.9904,234.08,234.0,34.0791148]
[1732579374380,0.12549,234.07,234.0,34.0791148]
[1732579374580,34.2046048,234.07,233.98,34.561749]
[1732579374906,20.0,234.08,234.02,34.0791148]
[1732579375504,17.7748,234.08,234.0,34.0791148]
[1732579375885,20.7652,234.08,234.0,34.0791148]
[1732579376287,0.12549,234.07,233.98,34.561749]
[1732579376608,34.2046048,234.07,233.98,34.561749]
[1732579377114,34.0791148,234.11,234.02,34.0791148]
[1732579377415,34.0791148,234.15,234.04,34.0791148]
[1732579377584,2.9897,234.14,234.04,34.0791148]
[1732579377780,2.9899,234.12,234.04,34.0791148]
[1732579378003,34.0791148,234.11,234.02,34.0791148]
[1732579378206,37.0689148,234.13,234.02,34.0791148]
[1732579378411,0.12549,234.1,234.0,34.0791148]
[1732579378587,34.0791148,234.11,234.0,34.0791148]
[1732579378787,34.0791148,234.11,234.02,34.0791148]
[1732579379290,20.0,234.08,234.0,34.0791148]
[1732579379601,0.12549,234.08,234.0,34.0791148]
[1732579379987,3.11599,234.08,234.0,34.0791148]
[1732579380708,34.0791148,234.07,233.98,34.561749]
[1732579380889,20.12549,234.04,233.98,0.4826342]
[1732579381222,24.027864,234.06,233.98,0.4826342]
[1732579381223,34.0791148,234.03,233.98,0.4826342]
[1732579381414,34.0791148,234.05,233.98,34.561749]
[1732579381584,34.0791148,234.05,233.98,0.4826342]
[1732579381988,2.991,234.03,233.98,0.4826342]
[1732579382287,34.0791148,234.09,234.0,34.0791148]
[1732579382489,20.0,234.08,234.02,34.0791148]
[1732579382708,34.2046048,234.07,233.98,34.561749]
[1732579382912,0.12549,234.07,233.98,0.4826342]
[1732579383113,0.12549,234.04,233.98,0.4826342]
[1732579383488,0.12549,234.02,233.98,0.4826342]
[1732579384189,2.9913,234.02,233.98,0.4826342]
[1732579384383,21.06750892,234.05,233.98,0.4826342]
[1732579384609,21.06750892,234.1,234.0,21.06750892]
[1732579384806,21.06750892,234.1,234.02,21.06750892]
[1732579385001,21.06750892,234.1,234.0,21.06750892]
[1732579385197,21.06750892,234.08,234.0,21.06750892]
[1732579385406,21.06750892,234.1,234.0,21.06750892]
[1732579385611,24.05740892,234.12,234.02,21.06750892]
[1732579385816,21.06750892,234.1,234.02,21.06750892]
[1732579385990,21.06750892,234.1,234.0,21.06750892]
[1732579386191,21.06750892,234.12,234.04,21.06750892]
[1732579386507,21.06750892,234.14,234.06,21.06750892]
[1732579387009,21.06750892,234.12,234.04,21.06750892]
[1732579387217,21.06750892,234.1,234.02,21.06750892]
[1732579387420,21.06750892,234.12,234.04,21.06750892]
[1732579387602,20.0,234.13,234.04,21.06750892]
[1732579387917,21.06750892,234.16,234.06,21.06750892]
[1732579388219,18.8968,234.17,234.01,23.776884]
[1732579388422,21.06750892,234.12,234.02,21.06750892]
[1732579388602,21.06750892,234.16,234.06,21.06750892]
[1732579389000,15.9075,234.17,234.08,21.06750892]
[1732579389202,6.94689957,234.22,234.15,21.06750892]
[1732579389410,6.94689957,234.22,234.17,21.06750892]
[1732579389800,6.94689957,234.22,234.11,21.06750892]
[1732579389801,21.06750892,234.21,234.11,21.06750892]
[1732579390107,0.12549,234.16,234.09,21.06750892]
[1732579390431,24.05720892,234.13,234.04,21.06750892]
[1732579390723,20.0,234.1,234.04,21.06750892]
[1732579391603,2.9897,234.13,234.06,21.06750892]
[1732579392021,20.0,234.1,234.02,21.06750892]
[1732579392227,0.12549,234.1,234.02,21.06750892]
[1732579392403,21.06750892,234.11,234.02,21.06750892]
[1732579392724,0.12549,234.1,234.02,21.06750892]
[1732579393318,21.06750892,234.09,234.0,21.06750892]
[1732579393903,24.05790892,234.09,234.0,21.06750892]
[1732579394303,2.9904,234.09,234.02,21.06750892]
[1732579394927,21.06750892,234.15,234.06,21.06750892]
[1732579395099,21.06750892,234.15,234.0,21.06750892]
[1732579395100,2.9893,234.17,234.08,21.06750892]
[1732579395310,6.94689957,234.22,234.14,21.06750892]
[1732579395516,6.94689957,234.22,234.16,21.06750892]
[1732579396229,21.06750892,234.21,234.12,21.06750892]
[1732579396611,21.06750892,234.19,234.1,21.06750892]
[1732579396813,21.06750892,234.21,234.12,21.06750892]
[1732579397002,6.94689957,234.22,234.16,21.06750892]
[1732579397631,6.94689957,234.22,234.18,21.06750892]
[1732579397824,123.30773553,234.0,233.99,43.902374]
[1732579398131,6.94689957,234.22,234.11,20.0]
[1732579398331,6.94689957,234.22,234.2,21.06750892]
[1732579399035,10.64041474,234.35,234.23,20.0]
[1732579399328,26.5154,234.36,234.3,21.06750892]
[1732579399512,10.0,234.29,234.26,21.06750892]
[1732579399716,10.0,234.29,234.24,21.06750892]
[1732579400405,10.0,234.29,234.26,21.06750892]
[1732579400604,10.0,234.29,234.24,21.06750892]
[1732579400605,10.0,234.28,234.24,21.06750892]
[1732579400803,10.0,234.27,234.24,21.06750892]
[1732579401024,10.0,234.28,234.24,21.06750892]
[1732579401233,10.0,234.31,234.26,21.06750892]
[1732579401437,10.0,234.34,234.29,21.06750892]
[1732579401608,10.0,234.34,234.25,0.64008415]
[1732579401934,10.0,234.4,234.32,21.06750892]
[1732579402135,10.0,234.4,234.35,21.06750892]
[1732579402309,10.0,234.36,234.29,21.06750892]
[1732579402628,31.06750892,234.4,234.33,21.06750892]
[1732579402833,10.0,234.4,234.33,21.06750892]
[1732579403132,10.0,234.34,234.29,21.06750892]
[1732579403311,10.0,234.29,234.22,21.06750892]
[1732579403633,20.0,234.27,234.18,21.06750892]
[1732579403807,23.776884,234.26,234.18,21.06750892]
[1732579404129,10.0,234.25,234.18,21.06750892]
[1732579404309,10.0,234.22,234.16,21.06750892]
[1732579404506,33.776884,234.22,234.16,21.06750892]
[1732579404918,10.0,234.22,234.18,21.06750892]
[1732579405211,10.0,234.23,234.18,21.06750892]
[1732579405826,10.0,234.26,234.2,21.06750892]
[1732579406015,10.0,234.22,234.18,21.06750892]
[1732579406338,20.0,234.22,234.16,21.06750892]
[1732579406632,10.0,234.2,234.16,21.06750892]
[1732579406812,20.0,234.22,234.16,21.06750892]
[1732579407018,10.0,234.19,234.14,21.06750892]
[1732579407319,10.0,234.21,234.16,21.06750892]
[1732579407635,10.0,234.16,234.12,21.06750892]
[1732579407838,10.0,234.18,234.12,21.06750892]
[1732579407839,20.0,234.18,234.12,21.06750892]
[1732579408140,10.0,234.12,234.08,50.44957339]
[1732579408322,10.0,234.12,234.08,29.38206447]
[1732579408524,10.0,234.1,234.08,29.38206447]
[1732579408728,10.0,234.11,234.08,50.44957339]
[1732579409033,10.0,234.09,234.08,50.44957339]
[1732579409337,23.776884,234.12,234.08,50.44957339]
[1732579409511,10.0,234.16,234.1,21.06750892]
[1732579409714,10.0,234.11,234.08,50.44957339]
[1732579410127,20.0,234.09,234.08,29.38206447]
[1732579410511,43.776884,234.09,234.08,29.38206447]
[1732579411645,20.0,234.11,234.08,29.38206447]
[1732579411946,10.0,234.11,234.08,50.44957339]
[1732579412107,20.0,234.11,234.08,50.44957339]
[1732579412511,20.0,234.11,234.08,29.38206447]
[1732579412741,10.0,234.12,234.08,50.44957339]
[1732579412939,10.0,234.16,234.08,54.72147339]
[1732579413117,10.0,234.09,234.08,29.38206447]
[1732579413512,20.0,234.09,234.08,29.38206447]
[1732579413942,20.64041474,234.09,234.08,29.38206447]
[1732579414145,33.776884,234.09,234.08,29.38206447]
[1732579414514,34.41729874,234.09,234.08,29.38206447]
[1732579414742,44.41729874,234.09,234.08,29.38206447]
[1732579414928,43.776884,234.09,234.08,29.38206447]
[1732579415315,44.41729874,234.09,234.08,29.38206447]
[1732579416339,44.66827874,234.09,234.08,29.38206447]
[1732579416538,43.776884,233.99,233.98,0.4826342]
[1732579416745,64.84439292,233.99,233.98,0.4826342]
[1732579417045,64.96988292,233.99,233.98,0.4826342]
[1732579417338,69.15468766,233.99,233.98,0.4826342]
[1732579417928,47.83619874,233.99,233.98,0.4826342]
[1732579418120,37.83619874,233.99,233.98,0.4826342]
[1732579418336,37.195784,233.99,233.98,0.4826342]
[1732579418531,43.776884,233.99,233.98,0.4826342]
[1732579418821,44.41729874,233.99,233.98,0.4826342]
[1732579419141,44.66827874,233.99,233.98,0.4826342]
[1732579419836,44.027864,233.99,233.98,0.4826342]
[1732579420729,44.66827874,233.99,233.98,0.4826342]
[1732579421236,44.41729874,233.99,233.98,0.4826342]
[1732579421418,10.0,234.0,233.98,0.4826342]
[1732579422425,10.0,233.99,233.98,0.4826342]
[1732579422819,23.4189,233.99,233.98,0.4826342]
[1732579423220,24.05931474,233.99,233.98,0.4826342]
[1732579423417,21.06750892,234.0,233.98,0.4826342]
[1732579423654,10.0,233.88,233.79,10.6929]
[1732579423821,10.0,233.88,233.81,21.06750892]
[1732579424021,41.06750892,233.94,233.85,21.06750892]
[1732579424236,10.0,233.94,233.87,21.06750892]
[1732579424518,23.776884,233.95,233.87,21.06750892]
[1732579424736,31.06750892,233.94,233.85,21.06750892]
[1732579424932,10.0,233.96,233.84,0.12549]
[1732579425268,10.0,233.9,233.83,0.12549]
[1732579425450,10.0,233.93,233.86,21.06750892]
[1732579426040,10.0,233.95,233.9,21.06750892]
[1732579426443,23.776884,233.97,233.9,20.56750892]
[1732579426650,23.776884,233.97,233.84,0.64125935]
[1732579426651,23.776884,233.97,233.92,21.06750892]
[1732579426852,21.06750892,234.0,233.9,21.06750892]
[1732579427052,10.0,234.01,233.92,21.06750892]
[1732579427254,10.0,233.99,233.92,21.06750892]
[1732579427458,10.0,233.99,233.9,21.06750892]
[1732579427660,20.0,233.99,233.9,21.06750892]
[1732579427956,10.0,233.97,233.88,21.06750892]
[1732579428133,23.776884,233.94,233.88,21.06750892]
[1732579428456,10.0,233.93,233.86,21.06750892]
[1732579429136,10.0,233.91,233.86,21.06750892]
[1732579429353,10.0,233.91,233.88,21.06750892]
[1732579429559,10.0,233.91,233.86,21.06750892]
[1732579429939,20.0,233.91,233.86,21.06750892]
[1732579430532,10.0,233.91,233.86,21.06750892]
[1732579430735,25.12792366,233.92,233.84,21.06750892]
[1732579430934,3.42,233.92,233.84,21.06750892]
[1732579431136,10.0,233.94,233.86,21.06750892]
[1732579431451,10.0,233.94,233.88,21.06750892]
[1732579432050,10.0,233.94,233.86,21.06750892]
[1732579432250,10.0,233.93,233.86,21.06750892]
[1732579432554,10.0,233.93,233.88,21.06750892]
[1732579433261,10.0,233.93,233.86,25.34350892]
[1732579433752,10.0,233.89,233.84,21.06750892]
[1732579434154,13.4199,233.93,233.84,21.06750892]
[1732579434336,10.0,233.89,233.84,21.06750892]
[1732579434653,10.0,233.86,233.82,21.06750892]
[1732579435156,10.0,233.86,233.8,21.06750892]
[1732579435343,34.48810892,233.88,233.8,21.06750892]
[1732579435531,10.0,233.85,233.8,21.06750892]
[1732579435737,10.0,233.84,233.78,25.34490892]
[1732579436146,10.0,233.84,233.8,21.06750892]
[1732579437137,10.0,233.84,233.82,21.06750892]
[1732579437339,13.4207,233.87,233.82,21.06750892]
[1732579438063,3.4205,233.89,233.82,21.06750892]
[1732579438272,10.0,233.92,233.86,21.06750892]
[1732579438561,10.0,233.9,233.86,21.06750892]
[1732579438754,10.0,233.92,233.86,21.06750892]
[1732579438937,13.4198,233.93,233.86,21.06750892]
[1732579439133,10.0,233.9,233.86,21.06750892]
[1732579439335,13.4198,233.93,233.86,21.06750892]
[1732579439755,10.0,233.93,233.88,21.06750892]
[1732579440065,4.05961474,233.98,233.9,21.06750892]
[1732579440245,10.0,233.99,233.9,21.06750892]
[1732579440554,10.0,234.0,233.94,21.06750892]
[1732579440860,10.0,234.04,233.96,21.06750892]
[1732579441064,10.0,234.01,233.96,21.06750892]
[1732579441362,10.0,234.03,233.96,21.06750892]
[1732579441532,6.2943,234.08,233.89,0.64101185]
[1732579441533,10.0,234.08,234.01,21.06750892]
[1732579441736,10.64041474,234.17,234.07,21.06750892]
[1732579441956,21.06750892,234.24,234.12,21.06750892]
[1732579442171,21.06750892,234.26,234.13,0.25098]
[1732579442337,10.0,234.27,234.13,0.25098]
[1732579442538,10.0,234.22,234.13,0.25098]
[1732579442739,10.0,234.2,234.12,21.06750892]
[1732579443044,10.0,234.16,234.08,21.06750892]
[1732579443243,10.0,234.12,234.04,41.06750892]
[1732579443464,10.0,234.1,234.02,21.06750892]
[1732579443645,27.96807523,234.14,234.06,21.06750892]
[1732579443855,6.90056631,234.14,234.11,0.12549]
[1732579444155,6.90056631,234.14,234.13,0.25098]
[1732579444746,10.0,234.3,234.13,0.89137542]
[1732579444965,10.0,234.31,234.23,21.06750892]
[1732579445347,10.0,234.26,234.21,21.06750892]
[1732579445662,21.06750892,234.3,234.21,21.06750892]
[1732579445869,21.06750892,234.32,234.23,21.06750892]
[1732579446055,10.0,234.33,234.25,21.06750892]
[1732579446258,10.0,234.33,234.27,21.06750892]
[1732579446461,10.0,234.31,234.23,21.06750892]
[1732579446758,10.0,234.33,234.25,21.06750892]
[1732579447161,20.0,234.33,234.25,21.06750892]
[1732579447347,10.0,234.31,234.25,21.06750892]
[1732579447547,10.0,234.33,234.25,21.06750892]
[1732579447765,10.0,234.33,234.25,25.33630892]
[1732579447964,31.06750892,234.36,234.27,21.06750892]
[1732579448367,21.06750892,234.36,234.28,20.0]
[1732579448548,40.43876408,234.38,234.3,20.0]
[1732579448744,9.37125516,234.38,234.33,21.06750892]
[1732579448950,9.37125516,234.38,234.35,21.06750892]
[1732579449249,20.0,234.36,234.3,41.06750892]
[1732579449562,9.37125516,234.38,234.32,21.06750892]
[1732579450146,10.0,234.36,234.28,4.90826485]
[1732579450348,9.37125516,234.38,234.33,21.06750892]
[1732579450547,9.37125516,234.38,234.31,21.06750892]
[1732579450764,9.37125516,234.38,234.35,21.06750892]
[1732579451150,9.37125516,234.38,234.37,21.06750892]
[1732579451460,9.37125516,234.38,234.35,21.06750892]
[1732579451656,19.37125516,234.38,234.33,21.06750892]
[1732579451853,19.37125516,234.38,234.31,21.06750892]
[1732579452053,19.37125516,234.38,234.33,21.06750892]
[1732579452259,19.37125516,234.38,234.31,21.06750892]
[1732579452462,9.37125516,234.38,234.33,21.06750892]
[1732579452660,9.37125516,234.38,234.35,21.06750892]
[1732579453266,9.37125516,234.38,234.37,21.06750892]
[1732579453852,9.37125516,234.38,234.37,25.58518892]
[1732579454075,42.81047482,234.49,234.38,0.25098]
[1732579454381,11.7429659,234.49,234.42,21.06750892]
[1732579454955,1.7429659,234.49,234.46,21.06750892]
[1732579455281,0.4826342,234.56,234.52,0.12549]
[1732579455453,2.19549981,234.56,234.55,21.31848892]
[1732579455781,10.4826342,234.56,234.51,41.06750892]
[1732579455948,10.4826342,234.56,234.46,21.06750892]
[1732579455949,10.0,234.52,234.46,21.06750892]
[1732579456151,10.0,234.49,234.44,21.06750892]
[1732579456572,0.4826342,234.56,234.48,21.06750892]
[1732579456769,0.4826342,234.56,234.38,4.2664]
[1732579456770,0.4826342,234.56,234.51,21.06750892]
[1732579456977,0.4826342,234.56,234.53,21.06750892]
[1732579457176,10.0,234.55,234.49,21.06750892]
[1732579457476,0.4826342,234.56,234.49,21.06750892]
[1732579457771,0.4826342,234.56,234.51,21.06750892]
[1732579458073,10.4826342,234.56,234.51,21.06750892]
[1732579458375,10.0,234.54,234.46,21.06750892]
[1732579458692,21.06750892,234.55,234.49,20.0]
[1732579459162,41.06750892,234.55,234.49,20.0]
[1732579459369,21.06750892,234.55,234.49,20.0]
[1732579459673,0.4826342,234.56,234.5,0.25098]
[1732579459976,0.4826342,234.56,234.54,0.25098]
[1732579460173,0.4826342,234.56,234.54,21.95777759]
[1732579460354,0.4826342,234.56,234.55,24.027864]
[1732579461153,31.06750892,234.73,234.65,0.25098]
[1732579461359,31.06750892,234.69,234.64,20.0]
[1732579461564,20.0,234.65,234.57,21.19299892]
[1732579461771,10.0,234.63,234.56,0.6391014]
[1732579461975,11.9281,234.74,234.64,20.0]
[1732579461976,21.06750892,234.73,234.64,20.0]
[1732579462158,21.06750892,234.75,234.69,20.0]
[1732579462562,10.0,234.74,234.69,20.0]
[1732579462758,31.06750892,234.71,234.65,20.0]
[1732579462980,10.0,234.71,234.64,21.06750892]
[1732579463162,10.0,234.68,234.63,0.63903324]
[1732579463367,21.06750892,234.65,234.59,20.0]
[1732579463573,10.0,234.62,234.56,21.06750892]
[1732579463771,10.0,234.6,234.52,21.70673346]
[1732579463978,31.06750892,234.59,234.5,21.06750892]
[1732579464184,10.0,234.61,234.54,21.06750892]
[1732579464487,10.0,234.66,234.6,21.06750892]
[1732579464862,8.5196,234.76,234.5,14.9251]
[1732579464863,41.06750892,234.71,234.62,21.06750892]
[1732579465059,10.0,234.66,234.61,0.63915804]
[1732579465259,10.0,234.62,234.61,20.0]
[1732579465482,10.0,234.64,234.61,20.0]
[1732579465683,31.06750892,234.75,234.66,20.0]
[1732579465858,3.4079,234.75,234.68,21.06750892]
[1732579466064,41.06750892,234.77,234.68,21.06750892]
[1732579466065,24.47510892,234.77,234.7,21.06750892]
[1732579466368,24.47510892,234.77,234.68,0.63892536]
[1732579466369,10.0,234.74,234.68,21.06750892]
[1732579466580,21.06750892,234.75,234.68,21.7064736]
[1732579467591,13.4082,234.73,234.69,20.0]
[1732579469088,34.47540892,234.75,234.69,20.0]
[1732579469294,10.0,234.72,234.67,20.0]
[1732579469777,3.4084,234.71,234.67,20.0]
[1732579470382,10.0,234.69,234.65,20.0]
[1732579470593,10.0,234.66,234.6,21.06750892]
[1732579470886,3.4084,234.71,234.54,21.06750892]
[1732579470887,31.06750892,234.61,234.54,21.06750892]
[1732579471392,10.0,234.6,234.52,21.70681712]
[1732579471597,10.0,234.58,234.52,21.70681712]
[1732579471770,10.0,234.56,234.5,21.06750892]
[1732579472379,10.0,234.54,234.48,21.06750892]
[1732579472696,10.0,234.49,234.45,17.064326]
[1732579472999,10.0,234.52,234.44,21.70707872]
[1732579473289,20.0,234.47,234.42,21.06750892]
[1732579473498,20.0,234.47,234.4,21.06750892]
[1732579473691,20.0,234.47,234.42,21.06750892]
[1732579473990,10.0,234.51,234.44,21.06750892]
[1732579474367,23.4107,234.56,234.48,21.06750892]
[1732579474597,10.0,234.56,234.5,21.06750892]
[1732579474895,10.0,234.5,234.46,21.06750892]
[1732579475070,31.06750892,234.55,234.48,21.06750892]
[1732579475393,10.0,234.56,234.5,21.06750892]
[1732579475394,20.0,234.56,234.5,21.06750892]
[1732579475599,10.0,234.56,234.5,21.06750892]
[1732579475800,10.0,234.56,234.49,0.12549]
[1732579475801,20.0,234.68,234.55,21.06750892]
[1732579476099,134.5,234.78,234.69,20.0]
[1732579476100,21.06750892,234.75,234.69,20.0]
[1732579476278,21.06750892,234.79,234.7,21.31848892]
[1732579476479,10.4826342,234.8,234.75,20.0]
[1732579477695,10.0,234.78,234.75,20.0]
[1732579477893,10.0,234.78,234.73,20.0]
[1732579478279,47.89730278,234.8,234.73,20.0]
[1732579478492,10.0,234.78,234.74,20.0]
[1732579479005,44.00746858,234.78,234.74,20.0]
[1732579479180,13.8898342,234.8,234.74,0.12549]
[1732579479181,20.4826342,234.8,234.74,0.12549]
[1732579479380,10.4826342,234.8,234.73,34.64623434]
[1732579479599,10.0,234.77,234.74,20.0]
[1732579480285,10.0,234.76,234.74,20.0]
[1732579480497,10.0,234.77,234.73,20.0]
[1732579480700,10.4826342,234.8,234.74,34.13295858]
[1732579480998,10.0,234.77,234.74,34.64622418]
[1732579481507,0.4826342,234.8,234.76,34.00746858]
[1732579481806,10.4826342,234.8,234.77,20.0]
[1732579482006,10.4826342,234.8,234.72,34.64618256]
[1732579482007,10.0,234.78,234.72,34.64618256]
[1732579482179,10.0,234.77,234.73,20.0]
[1732579482379,0.4826342,234.8,234.75,54.00746858]
[1732579482602,10.0,234.79,234.73,54.00746858]
[1732579482790,0.4826342,234.8,234.79,20.12549]
[1732579482994,0.4826342,234.8,234.79,54.25844858]
[1732579483207,0.4826342,234.8,234.79,20.12549]
[1732579483500,0.4826342,234.8,234.79,20.25098]
[1732579483697,0.4826342,234.8,234.79,54.25844858]
[1732579483899,0.4826342,234.8,234.79,58.51754858]
[1732579484707,0.4826342,234.8,234.79,59.15610209]
[1732579485285,0.4826342,234.8,234.79,20.0]